[Event "1000GM Winter IM Norm-2 2024"]
[Site "Sunnyvale/"]
[Date "2024.01.03"]
[Round "1.8"]
[White "Rodi, Luis Ernesto"]
[Black "Bhatta, Rohit"]
[Result "1-0"]
[ECO "D00"]
[WhiteElo "2196"]
[BlackElo "1867"]
[Annotator "RC"]
[PlyCount "77"]
[EventDate "2023.12.14"]
[EventType "schev"]
[EventCountry "USA"]
[SourceTitle "playchess.com"]
[Source "ChessBase"]
[SourceQuality "1"]
[TimeControl "5400+30"]

1. d4 {[%emt 0:04:30]} Nf6 {[%emt 0:00:06]} 2. Bg5 {[%emt 0:00:09]} d5 {[%emt 0:00:07]} 3. Bxf6 {[%emt 0:00:05]} exf6 {[%emt 0:00:06]} 4. e3 {[%emt 0:00:07]} Bd6 {[%emt 0:00:28]} 5. Nd2 {[%emt 0:00:08]} c6 {[%emt 0:01:59]} 6. Bd3 {[%emt 0:00:38]} O-O {[%emt 0:01:45]} 7. Qf3 {[%emt 0:02:06]} Re8 {[%emt 0:06:02]} 8. Ne2 {[%emt 0:00:27]} Nd7 {[%emt 0:04:21]} 9. g4 {[%emt 0:03:19]} Nf8 {[%emt 0:11:39]} 10. O-O-O {[%emt 0:00:40]} Be6 {[%emt 0:05:13]} 11. h4 {[%emt 0:01:08]} Qd7 {[%emt 0:10:06]} 12. Rdg1 {[%emt 0:00:44]} b6 {[%emt 0:02:14]} 13. g5 {[%emt 0:02:17]} f5 {[%emt 0:02:21]} 14. Nf4 {[%emt 0:04:28]} Bxf4 {[%emt 0:03:44]} 15. Qxf4 {[%emt 0:00:51]} c5 {[%emt 0:02:11]} 16. c3 {[%emt 0:03:15]} c4 {[%emt 0:02:01]} 17. Bc2 {[%emt 0:00:07]} b5 {[%emt 0:01:09]} 18. h5 {[%emt 0:01:08]} Re7 {[%emt 0:18:22]} 19. h6 {[%emt 0:02:57]} g6 {[%emt 0:00:21]} 20. Qe5 {[%emt 0:00:15]} f6 {[%emt 0:00:18]} 21. gxf6 {[%emt 0:00:14]} Rf7 {[%emt 0:04:11]} 22. Nf3 {[%emt 0:01:14]} Qd8 {[%emt 0:01:22]} 23. Ng5 {[%emt 0:00:51]} Rxf6 {[%emt 0:00:52]} 24. Nxe6 {[%emt 0:03:11]} Nxe6 {[%emt 0:00:13]} 25. Bxf5 {[%emt 0:00:19]} Nf8 {[%emt 0:02:43]} 26. f4 {[%emt 0:00:38]} a5 {[%emt 0:02:32]} 27. Bc2 {[%emt 0:01:04]} Raa6 {[%emt 0:01:30]} 28. f5 {[%emt 0:00:16]} b4 {[%emt 0:00:53]} 29. Rg5 {[%emt 0:03:43]} Rad6 {[%emt 0:02:04]} 30. Rhg1 {[%emt 0:01:55]} bxc3 {[%emt 0:04:05]} 31. bxc3 {[%emt 0:00:20]} a4 {[%emt 0:01:41]} 32. fxg6 {[%emt 0:03:47]} hxg6 {[%emt 0:06:06]} 33. h7+ {[%emt 0:02:22]} Kxh7 {[%emt 0:01:01]} 34. e4 {[%emt 0:15:50]} dxe4 {[%emt 0:00:55]} 35. Qxe4 {[%emt 0:00:08]} Rde6 {[%emt 0:01:11]} 36. Qh4+ {[%emt 0:01:39]} Kg7 {[%emt 0:01:17]} 37. Bxg6 {[%emt 0:02:38]} Nxg6 {[%emt 0:00:59]} 38. Rxg6+ {[%emt 0:00:11]} Kf7 {[%emt 0:00:35]} 39. Qh7+ {[%emt 0:00:05]} 1-0

[Event "1000GM Winter IM Norm-2 2024"]
[Site "Sunnyvale/"]
[Date "2024.01.03"]
[Round "1.9"]
[White "Ramirez, Carlos"]
[Black "Sivakumar, Shaashwath"]
[Result "*"]
[ECO "E62"]
[WhiteElo "2190"]
[BlackElo "2205"]
[Annotator "RC"]
[PlyCount "32"]
[EventDate "2023.12.14"]
[EventType "schev"]
[EventCountry "USA"]
[SourceTitle "playchess.com"]
[Source "ChessBase"]
[SourceQuality "1"]
[TimeControl "5400+30"]

1. d4 {[%emt 0:00:05]} Nf6 {[%emt 0:01:16]} 2. c4 {[%emt 0:00:07]} g6 {[%emt 0:00:08]} 3. Nf3 {[%emt 0:00:05]} Bg7 {[%emt 0:00:05]} 4. g3 {[%emt 0:00:10]} O-O {[%emt 0:00:13]} 5. Bg2 {[%emt 0:00:08]} d6 {[%emt 0:00:06]} 6. O-O {[%emt 0:00:08]} Nc6 {[%emt 0:00:16]} 7. Nc3 {[%emt 0:00:12]} e5 {[%emt 0:00:38]} 8. dxe5 {[%emt 0:00:14]} dxe5 {[%emt 0:00:04]} 9. Bg5 {[%emt 0:00:13]} h6 {[%emt 0:01:28]} 10. Qxd8 {[%emt 0:00:15]} Rxd8 {[%emt 0:00:03]} 11. Bxf6 {[%emt 0:00:19]} Bxf6 {[%emt 0:00:03]} 12. Nd5 {[%emt 0:00:10]} Kg7 {[%emt 1:32:10]} 13. Nxc7 {[%emt 0:00:10]} Rb8 {[%emt 0:00:05]} 14. e4 {[%emt 0:00:31]} Be7 {[%emt 0:00:08]} 15. Rad1 {[%emt 0:03:23]} Be6 {[%emt 0:00:10]} 16. Nd5 {[%emt 0:00:23]} Bc5 {[%emt 0:00:12]} *

[Event "1000GM Winter IM Norm-2 2024"]
[Site "Sunnyvale/"]
[Date "2024.01.03"]
[Round "1.9"]
[White "Karthi, Jashith"]
[Black "Mede, Istvan"]
[Result "1/2-1/2"]
[ECO "E62"]
[WhiteElo "2032"]
[BlackElo "2187"]
[Annotator "RC"]
[PlyCount "63"]
[EventDate "2023.12.14"]
[EventType "schev"]
[EventCountry "USA"]
[SourceTitle "playchess.com"]
[Source "ChessBase"]
[SourceQuality "1"]
[TimeControl "5400+30"]

1. d4 {[%emt 0:00:05]} Nf6 {[%emt 0:01:16]} 2. c4 {[%emt 0:00:07]} g6 {[%emt 0:00:08]} 3. Nf3 {[%emt 0:00:05]} Bg7 {[%emt 0:00:05]} 4. g3 {[%emt 0:00:10]} O-O {[%emt 0:00:13]} 5. Bg2 {[%emt 0:00:08]} d6 {[%emt 0:00:06]} 6. O-O {[%emt 0:00:08]} Nc6 {[%emt 0:00:16]} 7. Nc3 {[%emt 0:00:12]} e5 {[%emt 0:00:38]} 8. dxe5 {[%emt 0:00:14]} dxe5 {[%emt 0:00:04]} 9. Bg5 {[%emt 0:00:13]} h6 {[%emt 0:01:28]} 10. Qxd8 {[%emt 0:00:15]} Rxd8 {[%emt 0:00:03]} 11. Bxf6 {[%emt 0:00:19]} Bxf6 {[%emt 0:00:03]} 12. Nd5 {[%emt 0:00:10]} Kg7 {[%emt 0:00:07]} 13. Nxc7 {[%emt 0:00:10]} Rb8 {[%emt 0:00:05]} 14. e4 {[%emt 0:00:31]} Be7 {[%emt 0:00:08]} 15. Rad1 {[%emt 0:03:23]} Be6 {[%emt 0:00:10]} 16. Nd5 {[%emt 0:00:23]} Bc5 {[%emt 0:00:12]} 17. a3 {[%emt 0:02:00]} a5 {[%emt 0:00:13]} 18. Rd2 {[%emt 0:00:23]} g5 {[%emt 0:10:05]} 19. Rfd1 {[%emt 0:03:13]} g4 {[%emt 0:03:35]} 20. Nh4 {[%emt 0:04:05]} Nd4 {[%emt 0:02:02]} 21. Ne3 {[%emt 0:04:51]} h5 {[%emt 0:06:25]} 22. Nhf5+ {[%emt 0:00:23]} Kf6 {[%emt 0:03:40]} 23. Nxd4 {[%emt 0:00:08]} Bxd4 {[%emt 0:00:34]} 24. Nd5+ {[%emt 0:00:22]} Bxd5 {[%emt 0:00:26]} 25. cxd5 {[%emt 0:00:34]} Rbc8 {[%emt 0:01:10]} 26. Bf1 {[%emt 0:00:15]} Rd6 {[%emt 0:02:23]} 27. a4 {[%emt 0:01:01]} Kg5 {[%emt 0:09:28]} 28. h4+ {[%emt 0:01:21]} Kg6 {[%emt 0:03:35]} 29. Bb5 {[%emt 0:01:50]} f5 {[%emt 0:04:04]} 30. exf5+ {[%emt 0:00:45]} Kxf5 {[%emt 0:00:05]} 31. Bd3+ {[%emt 0:00:29]} Kf6 {[%emt 0:00:10]} 32. Be4 {[%emt 0:01:12]} 1/2-1/2

[Event "1000GM Winter IM Norm-2 2024"]
[Site "Sunnyvale/"]
[Date "2024.01.03"]
[Round "2.1"]
[White "Mede, Istvan"]
[Black "Zhou, Ruoyu"]
[Result "1/2-1/2"]
[ECO "D35"]
[WhiteElo "2187"]
[BlackElo "2112"]
[Annotator "ChessBase"]
[PlyCount "89"]
[EventDate "2023.12.14"]
[EventType "schev"]
[EventCountry "USA"]
[SourceTitle "playchess.com"]
[Source "ChessBase"]
[SourceQuality "1"]
[TimeControl "5400+30"]

1. d4 {[%emt 0:00:33]} d5 {[%emt 0:00:10]} 2. c4 {[%emt 0:00:10]} e6 {[%emt 0:00:08]} 3. Nc3 {[%emt 0:00:09]} Be7 {[%emt 0:00:09]} 4. cxd5 {[%emt 0:00:05]} exd5 {[%emt 0:00:15]} 5. Bf4 {[%emt 0:00:16]} Nf6 {[%emt 0:00:21]} 6. Qc2 {[%emt 0:02:24]} c6 {[%emt 0:09:12]} 7. h3 {[%emt 0:01:06]} Be6 {[%emt 0:07:16]} 8. e3 {[%emt 0:00:29]} Nbd7 {[%emt 0:01:17]} 9. Nf3 {[%emt 0:00:21]} h6 {[%emt 0:02:01]} 10. Bd3 {[%emt 0:00:11]} Rc8 {[%emt 0:04:19]} 11. O-O {[%emt 0:10:13]} O-O {[%emt 0:01:07]} 12. Rad1 {[%emt 0:06:02]} Re8 {[%emt 0:09:53]} 13. Qe2 {[%emt 0:02:05]} Bf8 {[%emt 0:05:02]} 14. Ne5 {[%emt 0:05:26]} a6 {[%emt 0:07:25]} 15. Bh2 {[%emt 0:01:23]} Nb6 {[%emt 0:20:53]} 16. f4 {[%emt 0:01:24]} c5 {[%emt 0:02:56]} 17. Rf2 {[%emt 0:22:35]} cxd4 {[%emt 0:04:43]} 18. exd4 {[%emt 0:00:08]} Bb4 {[%emt 0:02:39]} 19. Qf3 {[%emt 0:04:19]} Bxc3 {[%emt 0:07:37]} 20. bxc3 {[%emt 0:02:44]} Na4 {[%emt 0:01:18]} 21. f5 {[%emt 0:01:27]} Bd7 {[%emt 0:00:12]} 22. c4 {[%emt 0:01:23]} Nc3 {[%emt 0:00:49]} 23. Rc1 {[%emt 0:01:10]} Nce4 {[%emt 0:01:16]} 24. Rb2 {[%emt 0:01:47]} Bc6 {[%emt 0:04:06]} 25. c5 {[%emt 0:01:23]} Qa5 {[%emt 0:02:04]} 26. Bf4 {[%emt 0:06:31]} Qa4 {[%emt 0:01:46]} 27. Be3 {[%emt 0:01:19]} Qa3 {[%emt 0:00:57]} 28. Qe2 {[%emt 0:00:08]} Qa5 {[%emt 0:00:46]} 29. g4 {[%emt 0:07:38]} Qc7 {[%emt 0:00:55]} 30. Bf4 {[%emt 0:00:23]} Qd8 {[%emt 0:00:52]} 31. Qe1 {[%emt 0:04:59]} Nd7 {[%emt 0:00:39]} 32. Bxe4 {[%emt 0:01:29]} Nxe5 {[%emt 0:00:13]} 33. dxe5 {[%emt 0:00:20]} dxe4 {[%emt 0:00:02]} 34. Rd1 {[%emt 0:00:46]} Qe7 {[%emt 0:00:21]} 35. Rd6 {[%emt 0:00:13]} Rcd8 {[%emt 0:00:48]} 36. f6 {[%emt 0:02:29]} Qf8 {[%emt 0:00:12]} 37. Rbd2 {[%emt 0:05:55]} Rxd6 {[%emt 0:00:22]} 38. Rxd6 {[%emt 0:00:08]} Re6 {[%emt 0:01:23]} 39. Qd2 {[%emt 0:01:06]} Rxd6 {[%emt 0:00:32]} 40. cxd6 {[%emt 0:01:54]} Qd8 {[%emt 0:00:59]} 41. fxg7 {[%emt 0:00:19]} Qh4 {[%emt 0:00:30]} 42. Kh2 {[%emt 0:00:09]} Kxg7 {[%emt 0:00:45]} 43. Bg3 {[%emt 0:01:19]} Qg5 {[%emt 0:00:28]} 44. Bf4 {[%emt 0:00:41]} Qh4 {[%emt 0:00:16]} 45. Bg3 {[%emt 0:00:44]} 1/2-1/2

[Event "1000GM Winter IM Norm-2 2024"]
[Site "Sunnyvale/"]
[Date "2024.01.03"]
[Round "2.2"]
[White "Stopa, Jacek"]
[Black "Karthi, Jashith"]
[Result "1-0"]
[ECO "E02"]
[WhiteElo "2344"]
[BlackElo "2032"]
[Annotator "RC"]
[PlyCount "83"]
[EventDate "2023.12.14"]
[EventType "schev"]
[EventCountry "USA"]
[SourceTitle "playchess.com"]
[Source "ChessBase"]
[SourceQuality "1"]
[TimeControl "5400+30"]

1. Nf3 {[%emt 0:03:22]} d5 {[%emt 0:00:08]} 2. d4 {[%emt 0:00:31]} Nf6 {[%emt 0:00:12]} 3. c4 {[%emt 0:02:25]} e6 {[%emt 0:00:10]} 4. g3 {[%emt 0:00:12]} dxc4 {[%emt 0:00:12]} 5. Qa4+ {[%emt 0:04:55]} Nbd7 {[%emt 0:00:28]} 6. Bg2 {[%emt 0:01:35]} c5 {[%emt 0:00:20]} 7. O-O {[%emt 0:01:38]} cxd4 {[%emt 0:02:19]} 8. Nxd4 {[%emt 0:01:25]} Be7 {[%emt 0:00:28]} 9. Qxc4 {[%emt 0:02:56]} O-O {[%emt 0:00:48]} 10. Rd1 {[%emt 0:00:19]} Qa5 {[%emt 0:01:44]} 11. Nc3 {[%emt 0:01:06]} Rb8 {[%emt 0:01:56]} 12. Qb5 {[%emt 0:06:55]} Qc7 {[%emt 0:02:10]} 13. Bf4 {[%emt 0:05:58]} e5 {[%emt 0:01:03]} 14. Nf5 {[%emt 0:00:20]} Bc5 {[%emt 0:02:42]} 15. Be3 {[%emt 0:03:11]} Bxe3 {[%emt 0:00:28]} 16. Nxe3 {[%emt 0:00:19]} Nb6 {[%emt 0:01:47]} 17. Rac1 {[%emt 0:01:26]} Bd7 {[%emt 0:02:18]} 18. Qa5 {[%emt 0:00:28]} Rfc8 {[%emt 0:11:40]} 19. Qxa7 {[%emt 0:08:17]} Ra8 {[%emt 0:07:30]} 20. Qxb7 {[%emt 0:01:49]} Ra7 {[%emt 0:00:17]} 21. Qxc7 {[%emt 0:04:06]} Raxc7 {[%emt 0:00:06]} 22. Ra1 {[%emt 0:01:43]} Be6 {[%emt 0:01:21]} 23. Rd6 {[%emt 0:02:14]} Nbd7 {[%emt 0:01:02]} 24. Ned5 {[%emt 0:05:17]} Bxd5 {[%emt 0:00:29]} 25. Bxd5 {[%emt 0:00:14]} Rb8 {[%emt 0:00:17]} 26. Bb3 {[%emt 0:02:27]} Nc5 {[%emt 0:01:37]} 27. Rad1 {[%emt 0:00:53]} h6 {[%emt 0:00:31]} 28. Rd8+ {[%emt 0:00:33]} Rxd8 {[%emt 0:00:06]} 29. Rxd8+ {[%emt 0:00:07]} Kh7 {[%emt 0:00:04]} 30. Nd5 {[%emt 0:03:00]} Nxd5 {[%emt 0:00:16]} 31. Bxd5 {[%emt 0:00:10]} Na4 {[%emt 0:00:16]} 32. Rb8 {[%emt 0:01:05]} f5 {[%emt 0:02:02]} 33. Bb3 {[%emt 0:03:56]} Rc1+ {[%emt 0:00:37]} 34. Kg2 {[%emt 0:00:12]} Nc5 {[%emt 0:00:20]} 35. Bg8+ {[%emt 0:00:13]} Kh8 {[%emt 0:00:50]} 36. Be6+ {[%emt 0:00:34]} Kh7 {[%emt 0:00:08]} 37. Bxf5+ {[%emt 0:00:05]} g6 {[%emt 0:00:07]} 38. Bh3 {[%emt 0:00:41]} Ne4 {[%emt 0:00:23]} 39. Rb7+ {[%emt 0:00:17]} Kh8 {[%emt 0:00:26]} 40. Rb4 {[%emt 0:03:20]} Nc5 {[%emt 0:00:23]} 41. Rb8+ {[%emt 0:00:10]} Kg7 {[%emt 0:00:06]} 42. Rc8 {[%emt 0:00:06]} 1-0

[Event "1000GM Winter IM Norm-2 2024"]
[Site "Sunnyvale/"]
[Date "2024.01.03"]
[Round "2.3"]
[White "Calderin Gonzalez, Roberto"]
[Black "Goktepe, Derin"]
[Result "1-0"]
[ECO "D38"]
[WhiteElo "2413"]
[BlackElo "2187"]
[Annotator "RC"]
[PlyCount "127"]
[EventDate "2023.12.14"]
[EventType "schev"]
[EventCountry "USA"]
[SourceTitle "playchess.com"]
[Source "ChessBase"]
[SourceQuality "1"]
[TimeControl "5400+30"]

1. Nf3 {[%emt 0:00:26]} Nf6 {[%emt 0:00:11]} 2. d4 {[%emt 0:00:04]} e6 {[%emt 0:00:23]} 3. c4 {[%emt 0:00:08]} d5 {[%emt 0:00:34]} 4. Nc3 {[%emt 0:00:09]} Bb4 {[%emt 0:00:41]} 5. a3 {[%emt 0:05:01]} Bxc3+ {[%emt 0:05:43]} 6. bxc3 {[%emt 0:00:02]} c5 {[%emt 0:05:17]} 7. Bg5 {[%emt 0:03:52]} Qa5 {[%emt 0:10:16]} 8. Bxf6 {[%emt 0:01:56]} Qxc3+ {[%emt 0:04:06]} 9. Nd2 {[%emt 0:00:16]} gxf6 {[%emt 0:00:28]} 10. dxc5 {[%emt 0:02:20]} Na6 {[%emt 0:12:41]} 11. e3 {[%emt 0:08:46]} Nxc5 {[%emt 0:03:46]} 12. cxd5 {[%emt 0:01:41]} O-O {[%emt 0:12:19]} 13. Qc1 {[%emt 0:02:02]} Nd3+ {[%emt 0:02:41]} 14. Bxd3 {[%emt 0:00:03]} Qxd3 {[%emt 0:00:09]} 15. Qb2 {[%emt 0:00:17]} Bd7 {[%emt 0:04:27]} 16. dxe6 {[%emt 0:05:58]} Bxe6 {[%emt 0:03:04]} 17. Nf3 {[%emt 0:03:10]} Rfd8 {[%emt 0:02:36]} 18. Nd4 {[%emt 0:00:56]} Bg4 {[%emt 0:01:08]} 19. h3 {[%emt 0:01:51]} Rxd4 {[%emt 0:01:16]} 20. hxg4 {[%emt 0:00:17]} Rd6 {[%emt 0:01:17]} 21. Rh6 {[%emt 0:12:23]} Rb6 {[%emt 0:03:21]} 22. Qd2 {[%emt 0:01:46]} Qxd2+ {[%emt 0:03:02]} 23. Kxd2 {[%emt 0:00:01]} Rb2+ {[%emt 0:00:51]} 24. Ke1 {[%emt 0:00:02]} Kg7 {[%emt 0:00:35]} 25. Rh5 {[%emt 0:01:06]} Rc8 {[%emt 0:02:01]} 26. Rf5 {[%emt 0:00:26]} Rcc2 {[%emt 0:00:36]} 27. g3 {[%emt 0:00:45]} b6 {[%emt 0:01:24]} 28. Rf4 {[%emt 0:00:11]} b5 {[%emt 0:02:09]} 29. Kf1 {[%emt 0:02:03]} Ra2 {[%emt 0:02:28]} 30. Rd1 {[%emt 0:00:08]} Rxa3 {[%emt 0:02:06]} 31. Rd5 {[%emt 0:01:16]} a6 {[%emt 0:01:15]} 32. g5 {[%emt 0:00:45]} fxg5 {[%emt 0:01:22]} 33. Rxg5+ {[%emt 0:00:02]} Kf8 {[%emt 0:00:11]} 34. Rh5 {[%emt 0:00:31]} Rc4 {[%emt 0:00:47]} 35. Rf6 {[%emt 0:05:08]} Kg7 {[%emt 0:01:46]} 36. Rfh6 {[%emt 0:00:22]} b4 {[%emt 0:00:51]} 37. Rxh7+ {[%emt 0:00:08]} Kf8 {[%emt 0:00:23]} 38. Rh8+ {[%emt 0:00:29]} Ke7 {[%emt 0:00:37]} 39. Rb8 {[%emt 0:00:06]} b3 {[%emt 0:00:28]} 40. Rh6 {[%emt 0:01:18]} f6 {[%emt 0:02:33]} 41. Rb6 {[%emt 0:01:41]} Kf7 {[%emt 0:02:36]} 42. Rhxf6+ {[%emt 0:01:21]} Kg7 {[%emt 0:00:35]} 43. Rg6+ {[%emt 0:00:52]} Kf7 {[%emt 0:00:37]} 44. Rgd6 {[%emt 0:40:25]} Rc7 {[%emt 0:01:11]} 45. Rd3 {[%emt 0:00:00]} Ra2 {[%emt 0:00:38]} 46. Rdxb3 {[%emt 0:00:00]} Rcc2 {[%emt 0:00:54]} 47. Rb7+ {[%emt 0:00:00]} Kf8 {[%emt 0:01:51]} 48. Rb8+ {[%emt 0:00:00]} Kf7 {[%emt 0:00:21]} 49. R3b7+ {[%emt 0:00:00]} Ke6 {[%emt 0:00:11]} 50. Rf8 {[%emt 0:00:00]} a5 {[%emt 0:00:41]} 51. g4 {[%emt 0:00:00]} Rc4 {[%emt 0:00:35]} 52. Rb6+ {[%emt 0:00:00]} Ke7 {[%emt 0:04:31]} 53. Ra8 {[%emt 0:00:00]} Kd7 {[%emt 0:00:00]} 54. Ra7+ {[%emt 0:00:00]} Kc8 {[%emt 0:00:00]} 55. g5 {[%emt 0:00:00]} Ra1+ {[%emt 0:00:00]} 56. Ke2 {[%emt 0:00:00]} Ra2+ {[%emt 0:00:00]} 57. Kf3 {[%emt 0:00:00]} Rcc2 {[%emt 0:00:00]} 58. g6 {[%emt 0:00:00]} Rxf2+ {[%emt 0:00:00]} 59. Ke4 {[%emt 0:00:00]} Rg2 {[%emt 0:00:00]} 60. g7 {[%emt 0:00:00]} Ra4+ {[%emt 0:00:00]} 61. Kf3 {[%emt 0:00:00]} Rag4 {[%emt 0:00:13]} 62. Rf6 {[%emt 0:00:00]} Kb8 {[%emt 0:00:26]} 63. Re7 {[%emt 0:00:00]} Rxg7 {[%emt 0:00:10]} 64. Rf8# {[%emt 0:10:00]} 1-0

[Event "1000GM Winter IM Norm-2 2024"]
[Site "Sunnyvale/"]
[Date "2024.01.03"]
[Round "2.4"]
[White "Zuluaga Mancilla, Cesar"]
[Black "Atwell, Rose"]
[Result "1-0"]
[ECO "D02"]
[WhiteElo "2251"]
[BlackElo "2104"]
[Annotator "RC"]
[PlyCount "79"]
[EventDate "2023.12.14"]
[EventType "schev"]
[EventCountry "USA"]
[SourceTitle "playchess.com"]
[Source "ChessBase"]
[SourceQuality "1"]
[TimeControl "5400+30"]

1. d4 {[%emt 0:07:30]} d5 {[%emt 0:00:05]} 2. Nf3 {[%emt 0:00:05]} Nf6 {[%emt 0:00:07]} 3. Bf4 {[%emt 0:00:31]} e6 {[%emt 0:00:08]} 4. e3 {[%emt 0:00:27]} Bd6 {[%emt 0:00:18]} 5. c3 {[%emt 0:00:48]} Bxf4 {[%emt 0:02:48]} 6. exf4 {[%emt 0:00:07]} O-O {[%emt 0:02:39]} 7. Nbd2 {[%emt 0:01:40]} b6 {[%emt 0:03:44]} 8. g3 {[%emt 0:00:56]} c5 {[%emt 0:03:00]} 9. Bd3 {[%emt 0:00:07]} Ba6 {[%emt 0:03:42]} 10. Qe2 {[%emt 0:00:08]} Bxd3 {[%emt 0:02:02]} 11. Qxd3 {[%emt 0:00:08]} Nc6 {[%emt 0:03:17]} 12. O-O {[%emt 0:01:20]} Qd6 {[%emt 0:03:40]} 13. Rfe1 {[%emt 0:00:26]} g6 {[%emt 0:02:35]} 14. Rad1 {[%emt 0:02:21]} Rfd8 {[%emt 0:03:00]} 15. a3 {[%emt 0:00:44]} Rac8 {[%emt 0:06:02]} 16. Kg2 {[%emt 0:12:12]} Ne7 {[%emt 0:06:51]} 17. Ne5 {[%emt 0:00:23]} Qc7 {[%emt 0:03:46]} 18. Ndf3 {[%emt 0:01:05]} Ne4 {[%emt 0:07:13]} 19. Ng5 {[%emt 0:05:47]} Nxg5 {[%emt 0:04:43]} 20. fxg5 {[%emt 0:03:20]} Nf5 {[%emt 0:01:43]} 21. Rd2 {[%emt 0:03:24]} cxd4 {[%emt 0:04:59]} 22. cxd4 {[%emt 0:00:06]} Nd6 {[%emt 0:00:24]} 23. Ng4 {[%emt 0:03:11]} Nf5 {[%emt 0:05:26]} 24. Qf3 {[%emt 0:03:27]} Qe7 {[%emt 0:02:26]} 25. Qf4 {[%emt 0:01:41]} Qd6 {[%emt 0:01:38]} 26. Re5 {[%emt 0:01:26]} Kg7 {[%emt 0:02:10]} 27. h4 {[%emt 0:01:33]} b5 {[%emt 0:02:58]} 28. Nf6 {[%emt 0:04:26]} Qb8 {[%emt 0:03:34]} 29. h5 {[%emt 0:03:58]} h6 {[%emt 0:04:16]} 30. g4 {[%emt 0:08:32]} hxg5 {[%emt 0:02:05]} 31. Qxg5 {[%emt 0:00:18]} Ne7 {[%emt 0:01:00]} 32. h6+ {[%emt 0:01:34]} Kf8 {[%emt 0:01:20]} 33. Nh7+ {[%emt 0:03:35]} Ke8 {[%emt 0:00:16]} 34. Qf6 {[%emt 0:02:07]} Nc6 {[%emt 0:02:17]} 35. Rxe6+ {[%emt 0:06:26]} fxe6 {[%emt 0:00:09]} 36. Qxe6+ {[%emt 0:00:04]} Ne7 {[%emt 0:00:11]} 37. Nf6+ {[%emt 0:00:07]} Kf8 {[%emt 0:00:07]} 38. h7 {[%emt 0:08:09]} Kg7 {[%emt 0:00:06]} 39. h8=Q+ {[%emt 0:01:26]} Kxh8 {[%emt 0:00:54]} 40. Qf7 {[%emt 0:00:08]} 1-0

[Event "1000GM Winter IM Norm-2 2024"]
[Site "Sunnyvale/"]
[Date "2024.01.03"]
[Round "2.5"]
[White "Sivakumar, Shaaketh"]
[Black "Hajnal, Zoltan"]
[Result "1/2-1/2"]
[ECO "D13"]
[WhiteElo "2364"]
[BlackElo "2383"]
[Annotator "RC"]
[PlyCount "55"]
[EventDate "2023.12.14"]
[EventType "schev"]
[EventCountry "USA"]
[SourceTitle "playchess.com"]
[Source "ChessBase"]
[SourceQuality "1"]
[TimeControl "5400+30"]

1. d4 {[%emt 0:00:19]} d5 {[%emt 0:00:11]} 2. c4 {[%emt 0:00:15]} c6 {[%emt 0:00:04]} 3. Nc3 {[%emt 0:00:24]} Nf6 {[%emt 0:00:35]} 4. cxd5 {[%emt 0:01:36]} cxd5 {[%emt 0:00:20]} 5. Nf3 {[%emt 0:00:08]} Nc6 {[%emt 0:00:15]} 6. Bf4 {[%emt 0:00:21]} a6 {[%emt 0:01:05]} 7. e3 {[%emt 0:01:01]} Bg4 {[%emt 0:01:17]} 8. h3 {[%emt 0:01:09]} Bxf3 {[%emt 0:00:15]} 9. Qxf3 {[%emt 0:01:57]} e6 {[%emt 0:00:06]} 10. Bd3 {[%emt 0:02:26]} Bd6 {[%emt 0:02:08]} 11. Bg5 {[%emt 0:00:54]} Be7 {[%emt 0:00:07]} 12. Bxf6 {[%emt 0:00:34]} Bxf6 {[%emt 0:00:07]} 13. O-O {[%emt 0:00:11]} O-O {[%emt 0:01:21]} 14. Rac1 {[%emt 0:00:20]} Qa5 {[%emt 0:13:23]} 15. a3 {[%emt 0:03:51]} Rac8 {[%emt 0:00:47]} 16. Rc2 {[%emt 0:06:16]} Ne7 {[%emt 0:01:39]} 17. Rfc1 {[%emt 0:00:52]} Rc6 {[%emt 0:00:38]} 18. Qg4 {[%emt 0:05:18]} Rd8 {[%emt 0:08:33]} 19. h4 {[%emt 0:04:21]} Rcd6 {[%emt 0:20:11]} 20. Ne2 {[%emt 0:01:07]} Rc6 {[%emt 0:00:59]} 21. Nc3 {[%emt 0:00:40]} Rcd6 {[%emt 0:00:18]} 22. Ne2 {[%emt 0:00:07]} Rc6 {[%emt 0:00:06]} 23. Nf4 {[%emt 0:06:39]} Rxc2 {[%emt 0:08:31]} 24. Rxc2 {[%emt 0:00:28]} Ng6 {[%emt 0:00:05]} 25. Bxg6 {[%emt 0:11:55]} hxg6 {[%emt 0:00:23]} 26. Nd3 {[%emt 0:00:41]} Qb5 {[%emt 0:06:37]} 27. Rc3 {[%emt 0:00:57]} Rd6 {[%emt 0:05:58]} 28. g3 {[%emt 0:00:29]} 1/2-1/2

[Event "1000GM Winter IM Norm-2 2024"]
[Site "Sunnyvale/"]
[Date "2024.01.03"]
[Round "2.6"]
[White "Yao, Hanchi"]
[Black "Rodi, Luis Ernesto"]
[Result "0-1"]
[ECO "A51"]
[WhiteElo "1998"]
[BlackElo "2196"]
[Annotator "RC"]
[PlyCount "92"]
[EventDate "2023.12.14"]
[EventType "schev"]
[EventCountry "USA"]
[SourceTitle "playchess.com"]
[Source "ChessBase"]
[SourceQuality "1"]
[TimeControl "5400+30"]

1. d4 {[%emt 0:00:22]} Nf6 {[%emt 0:11:19]} 2. c4 {[%emt 0:00:03]} e5 {[%emt 0:00:09]} 3. d5 {[%emt 0:01:53]} Bb4+ {[%emt 0:01:15]} 4. Bd2 {[%emt 0:01:00]} a5 {[%emt 0:00:13]} 5. Bxb4 {[%emt 0:02:02]} axb4 {[%emt 0:00:27]} 6. Nd2 {[%emt 0:00:03]} O-O {[%emt 0:04:24]} 7. e4 {[%emt 0:02:16]} Na6 {[%emt 0:00:09]} 8. f3 {[%emt 0:06:39]} Nc5 {[%emt 0:02:06]} 9. Nb3 {[%emt 0:00:07]} Nfxe4 {[%emt 0:02:16]} 10. fxe4 {[%emt 0:02:53]} Qh4+ {[%emt 0:00:10]} 11. Kd2 {[%emt 0:01:52]} Nxe4+ {[%emt 0:00:34]} 12. Kc2 {[%emt 1:17:20]} Nf2 {[%emt 0:00:44]} 13. Qe1 {[%emt 0:00:00]} d6 {[%emt 0:05:08]} 14. Rd1 {[%emt 0:00:00]} Bf5+ {[%emt 0:01:28]} 15. Kc1 {[%emt 0:00:00]} Qf4+ {[%emt 0:00:45]} 16. Qd2 {[%emt 0:00:00]} Nxh1 {[%emt 0:02:33]} 17. g3 {[%emt 0:00:00]} Qe4 {[%emt 0:02:55]} 18. Bd3 {[%emt 0:00:00]} Qxd3 {[%emt 0:00:07]} 19. Qxd3 {[%emt 0:00:00]} Bxd3 {[%emt 0:00:04]} 20. Rxd3 {[%emt 0:00:00]} Nf2 {[%emt 0:00:16]} 21. Rf3 {[%emt 0:00:00]} Ne4 {[%emt 0:01:11]} 22. Kb1 {[%emt 0:00:00]} f5 {[%emt 0:00:10]} 23. Ne2 {[%emt 0:00:00]} g5 {[%emt 0:00:19]} 24. Nec1 {[%emt 0:00:00]} f4 {[%emt 0:00:13]} 25. g4 {[%emt 0:00:00]} Nf6 {[%emt 0:00:10]} 26. Rf1 {[%emt 0:00:00]} b5 {[%emt 0:00:20]} 27. cxb5 {[%emt 0:00:00]} Nxd5 {[%emt 0:00:06]} 28. Ne2 {[%emt 0:00:00]} Rab8 {[%emt 0:00:27]} 29. a4 {[%emt 0:00:00]} bxa3 {[%emt 0:00:15]} 30. bxa3 {[%emt 0:00:00]} Rxb5 {[%emt 0:00:04]} 31. Ka2 {[%emt 0:00:00]} Rfb8 {[%emt 0:00:30]} 32. Nec1 {[%emt 0:00:00]} e4 {[%emt 0:00:30]} 33. Kb2 {[%emt 0:00:00]} c5 {[%emt 0:00:30]} 34. a4 {[%emt 0:00:00]} Rxb3+ {[%emt 0:00:30]} 35. Nxb3 {[%emt 0:00:00]} c4 {[%emt 0:00:30]} 36. h4 {[%emt 0:00:00]} Rxb3+ {[%emt 0:00:46]} 37. Kc1 {[%emt 0:12:30]} Ne3 {[%emt 0:00:27]} 38. Rf2 {[%emt 0:00:00]} Ra3 {[%emt 0:00:25]} 39. Kb1 {[%emt 0:00:00]} Rxa4 {[%emt 0:00:10]} 40. hxg5 {[%emt 0:00:00]} f3 {[%emt 0:00:09]} 41. g6 {[%emt 0:00:00]} hxg6 {[%emt 0:00:08]} 42. g5 {[%emt 0:00:00]} c3 {[%emt 0:00:49]} 43. Rh2 {[%emt 0:00:00]} c2+ {[%emt 0:00:19]} 44. Kb2 {[%emt 0:00:00]} Rb4+ {[%emt 0:00:09]} 45. Ka2 {[%emt 0:04:00]} d5 {[%emt 0:00:54]} 46. Rh3 {[%emt 0:00:00]} Rc4 {[%emt 0:00:33]} 0-1